bitfinex/quotes_SOLUSD_20260208
["timestamp","ask_amount","ask_price","bid_price","bid_amount"]
[1770588283364,1.19427936,86.789,86.765,1.19123283]
[1770588285776,1.13730005,86.779,86.758,11.52620083]
[1770588286652,1.13730005,86.779,86.761,11.52578641]
[1770588287168,1.13730005,86.779,86.765,11.52536272]
[1770588287363,1.13730005,86.789,86.766,1.18508403]
[1770588288071,0.1,86.79,86.771,1.18508403]
[1770588288572,0.2,86.8,86.781,1.18508403]
[1770588289174,0.2,86.8,86.767,40.33791648]
[1770588289175,11.5182341,86.819,86.767,40.33791648]
[1770588289176,1.1859212,86.832,86.792,5.36086188]
[1770588289377,1.1859212,86.832,86.8,4.08603523]
[1770588289578,11.51423735,86.849,86.791,0.68918491]
[1770588289579,1.1859212,86.829,86.791,0.68918491]
[1770588289961,1.1859212,86.829,86.792,11.52179924]
[1770588291077,1.1859212,86.829,86.792,40.32629735]
[1770588293191,1.1859212,86.829,86.8,4.08603523]
[1770588294992,1.1859212,86.829,86.802,11.52047187]
[1770588300894,1.1859212,86.829,86.804,11.52020644]
[1770588301488,1.1859212,86.849,86.82,4.08603523]
[1770588301792,1.2859212,86.85,86.82,4.08603523]
[1770588302175,0.1,86.88,86.84,4.08603523]
[1770588302478,0.1,86.88,86.85,4.08603523]
[1770588302479,1.1859212,86.876,86.85,4.08603523]
[1770588302691,28.76698142,86.906,86.826,5.13032502]
[1770588302692,11.50455018,86.923,86.868,1.18508403]
[1770588302892,4.08603523,86.93,86.892,11.50853933]
[1770588303074,4.08603523,86.92,86.892,11.50853933]
[1770588303277,5.8558001,86.917,86.9,4.08603523]
[1770588303473,5.8558001,86.917,86.901,1.18508403]
[1770588303695,5.8558001,86.917,86.874,5.13032502]
[1770588303696,5.8558001,86.917,86.89,5.27111926]
[1770588304012,5.8558001,86.917,86.861,57.56285913]
[1770588304013,4.08603523,86.91,86.871,12.696362]
[1770588304298,11.50536149,86.916,86.875,11.51067313]
[1770588304498,4.08603523,86.91,86.875,11.51067313]
[1770588304699,1.13730005,86.909,86.875,11.51067313]
[1770588305170,1.13730005,86.907,86.875,11.51067313]
[1770588305575,1.13730005,86.899,86.869,11.51148585]
[1770588305785,1.13730005,86.899,86.873,1.18508403]
[1770588306578,1.13730005,86.907,86.873,1.18508403]
[1770588306779,1.13730005,86.907,86.872,11.51118887]
[1770588306980,1.13730005,86.899,86.86,4.08603523]
[1770588307181,1.13730005,86.897,86.861,11.51264664]
[1770588307494,1.13730005,86.897,86.862,1.18508403]
[1770588308283,1.13730005,86.895,86.862,1.18508403]
[1770588309395,1.13730005,86.895,86.863,11.51238156]
[1770588309598,1.13730005,86.895,86.864,1.18508403]
[1770588313797,1.13730005,86.893,86.864,1.18508403]
[1770588315586,1.13730005,86.893,86.843,28.78734543]
[1770588315587,1.15787494,86.889,86.846,1.20037461]
[1770588316499,1.15787494,86.879,86.846,1.20037461]
[1770588316802,1.15787494,86.879,86.85,11.51409269]
[1770588318803,28.769796,86.897,86.842,34.16595343]
[1770588318804,1.15787494,86.904,86.861,1.20037461]
[1770588319103,1.15787494,86.904,86.871,1.20037461]
[1770588320101,4.07283685,86.91,86.871,1.20037461]
[1770588321192,11.50655298,86.907,86.871,1.20037461]
[1770588321500,11.50655298,86.907,86.873,1.20037461]
[1770588321701,4.07283685,86.89,86.859,1.20037461]
[1770588322013,4.07283685,86.89,86.863,1.20037461]
[1770588322195,0.23071179,86.89,86.863,1.20037461]
[1770588322693,4.07283685,86.9,86.863,1.20037461]
[1770588322996,4.07283685,86.9,86.865,1.20037461]
[1770588323407,11.50761228,86.899,86.868,11.51167716]
[1770588323703,11.50761228,86.899,86.869,1.20037461]
[1770588324290,1.15787494,86.904,86.87,4.07283685]
[1770588324497,4.07283685,86.91,86.871,1.20037461]
[1770588326525,0.27531077,86.907,86.873,1.20037461]
[1770588327215,0.27531077,86.907,86.874,34.16595343]
[1770588327414,0.28537749,86.915,86.88,4.07283685]
[1770588327711,0.1,86.92,86.891,1.20037461]
[1770588328312,0.1,86.92,86.872,11.51118887]
[1770588328313,1.15787494,86.919,86.872,40.28916105]
[1770588328511,1.15787494,86.907,86.875,1.20037461]
[1770588328711,4.07283685,86.9,86.875,1.20037461]
[1770588328914,1.15787494,86.899,86.875,1.20037461]
[1770588331805,1.15787494,86.899,86.861,11.51264664]
[1770588332122,1.15787494,86.899,86.862,1.20037461]
[1770588333117,1.15787494,86.899,86.864,1.20037461]
[1770588333316,4.07283685,86.9,86.864,1.20037461]
[1770588333514,11.5071078,86.903,86.871,1.20037461]
[1770588334046,4.07283685,86.91,86.87,4.07283685]
[1770588334047,1.15787494,86.919,86.881,1.20037461]
[1770588335118,1.15787494,86.909,86.873,1.20037461]
[1770588335316,1.15787494,86.899,86.873,1.20037461]
[1770588335504,1.15787494,86.899,86.874,34.16595343]
[1770588337208,11.50774471,86.898,86.874,34.16595343]
[1770588337409,1.15787494,86.897,86.874,34.16595343]
[1770588338723,11.50800957,86.896,86.874,35.36632804]
[1770588338921,11.50800957,86.896,86.874,1.20037461]
[1770588339221,1.15787494,86.895,86.874,1.20037461]
[1770588342010,1.15787494,86.889,86.855,1.20037461]
[1770588343425,1.15787494,86.887,86.856,1.20037461]
[1770588343623,5.23071179,86.88,86.856,1.20037461]
[1770588344023,1.15787494,86.879,86.856,1.20037461]
[1770588345529,12.66824248,86.879,86.856,1.20037461]
[1770588349440,28.76912454,86.899,86.858,1.28114347]
[1770588349618,5.35743748,86.9,86.861,1.28114347]
[1770588351123,11.50774471,86.898,86.861,1.28114347]
[1770588352739,4.07283685,86.89,86.863,1.28114347]
[1770588352922,1.28460063,86.889,86.863,1.28114347]
[1770588353829,1.28460063,86.895,86.863,1.28114347]
[1770588357333,4.17283685,86.92,86.871,1.28114347]
[1770588357334,4.07283685,86.91,86.871,1.28114347]
[1770588359027,4.07283685,86.91,86.873,1.28114347]
[1770588359430,1.28460063,86.913,86.881,1.28114347]
[1770588359741,12.78967273,86.919,86.881,1.28114347]
[1770588359944,1.28460063,86.918,86.881,1.28114347]
[1770588361641,1.28460063,86.918,86.883,1.28114347]
[1770588361941,11.5050721,86.919,86.883,1.28114347]
[1770588362443,0.1,86.92,86.891,1.28114347]
[1770588362641,1.28460063,86.939,86.901,1.28114347]
[1770588363762,1.28460063,86.939,86.903,1.28114347]
[1770588364124,7.21211877,86.941,86.911,1.28114347]
[1770588365227,7.21211877,86.941,86.913,1.28114347]
[1770588365433,1.28460063,86.94,86.913,1.28114347]
[1770588365834,7.21211877,86.941,86.913,1.28114347]
[1770588366448,7.21211877,86.941,86.912,11.50589101]
[1770588366449,7.21211877,86.941,86.921,1.28114347]
[1770588366925,4.52317477,86.941,86.931,0.91365177]
[1770588367127,1.34565375,86.948,86.92,4.07283685]
[1770588367350,1.34565375,86.948,86.921,11.50469966]
[1770588369634,4.07283685,86.97,86.924,1.28114347]
[1770588369835,4.07283685,86.97,86.931,1.28114347]
[1770588370150,4.07283685,86.96,86.921,40.26644883]
[1770588370451,4.07283685,86.93,86.898,12.78882031]
[1770588371037,4.07283685,86.93,86.898,11.50767684]
[1770588371249,4.07283685,86.93,86.899,1.28114347]
[1770588371649,1.28460063,86.927,86.899,1.28114347]
[1770588372832,1.28460063,86.927,86.893,1.28114347]
[1770588373050,1.28460063,86.919,86.886,1.28114347]
[1770588374843,1.28460063,86.919,86.887,35.4470969]
[1770588375154,1.28460063,86.919,86.887,35.44759572]
[1770588375335,1.28460063,86.919,86.889,11.50893668]
[1770588375938,1.28460063,86.919,86.889,12.76800996]
[1770588376256,1.28460063,86.919,86.89,1.25907328]
[1770588379933,1.28460063,86.919,86.891,11.50867178]
[1770588380958,1.28460063,86.919,86.891,12.75298055]
[1770588383243,1.28460063,86.919,86.894,1.22659029]
[1770588385858,1.28460063,86.919,86.895,46.88921]
[1770588386164,1.28460063,86.919,86.895,45.67409544]
[1770588387972,1.28460063,86.919,86.895,46.87799638]
[1770588388473,1.29575844,86.918,86.895,34.16595343]
[1770588390271,1.29575844,86.918,86.896,11.50800957]
[1770588390671,1.29575844,86.918,86.898,11.50774471]
[1770588392851,1.29575844,86.918,86.898,12.68471935]
[1770588393052,1.29575844,86.918,86.899,1.17697464]
[1770588398075,1.29575844,86.918,86.894,1.1515596]
[1770588398872,1.29575844,86.916,86.891,11.50867178]
[1770588399371,1.29575844,86.922,86.901,1.14179758]
[1770588399755,1.29575844,86.931,86.911,1.14179758]
[1770588399958,1.29575844,86.953,86.921,1.14179758]
[1770588400155,1.29575844,86.951,86.923,1.1370005]
[1770588401355,1.29575844,86.949,86.911,1.13225852]
[1770588401563,1.29575844,86.939,86.905,11.50681498]
[1770588403455,1.29575844,86.937,86.901,11.50734744]
[1770588404272,1.29575844,86.937,86.901,12.63028477]
[1770588404877,1.29575844,86.937,86.902,1.11835688]
[1770588405482,1.22414805,86.909,86.869,11.51150313]
[1770588405680,1.22414805,86.899,86.869,12.62085633]
[1770588407279,1.22414805,86.899,86.87,1.10055517]
[1770588407784,4.07228919,86.9,86.87,1.10055517]
[1770588407785,1.22414805,86.897,86.87,1.10055517]
[1770588408093,1.22414805,86.889,86.864,11.51219131]
[1770588410076,1.22414805,86.889,86.866,11.51198397]
[1770588410286,1.22414805,86.889,86.867,1.08773347]
[1770588410665,1.22414805,86.889,86.866,11.51198397]
[1770588412279,1.22414805,86.889,86.868,11.51171892]
[1770588417290,1.22414805,86.879,86.853,11.51365201]
[1770588417679,1.22414805,86.879,86.857,11.51315591]
[1770588417886,1.22414805,86.879,86.861,11.51256161]
[1770588418079,1.22414805,86.879,86.861,12.57205061]
[1770588419366,1.22414805,86.879,86.862,1.05182987]
[1770588419990,1.22414805,86.885,86.862,1.05182987]
[1770588420284,1.22414805,86.909,86.871,1.04806615]
[1770588421470,1.22414805,86.907,86.872,12.55553454]
[1770588421994,1.22414805,86.907,86.873,1.04434567]
[1770588422593,1.22414805,86.899,86.867,11.51178995]
[1770588423293,1.22414805,86.899,86.87,4.07228919]
[1770588423593,1.22414805,86.899,86.871,11.51132138]
[1770588426284,1.22414805,86.899,86.872,1.02637453]
[1770588428979,1.22414805,86.897,86.871,11.51132138]
[1770588430799,1.22414805,86.897,86.88,4.07228919]
[1770588430995,1.22414805,86.897,86.873,1.0127266]
[1770588431585,1.22414805,86.897,86.871,11.51132138]
[1770588432187,1.22414805,86.897,86.871,45.67727481]
[1770588434802,1.22414805,86.897,86.871,11.51132138]
[1770588437004,11.50800957,86.896,86.869,29.01460145]
[1770588437211,11.50800957,86.896,86.87,1.16645281]
[1770588438105,57.511542,86.94,86.871,1.16645281]
[1770588438306,4.07228919,86.94,86.901,1.16645281]
[1770588438499,30.0,86.905,86.901,1.16645281]
[1770588438692,4.07228919,86.94,86.901,1.16645281]
[1770588439203,40.258112,86.939,86.901,1.16645281]
[1770588439388,4.07228919,86.93,86.901,1.16645281]
[1770588440392,28.75579429,86.939,86.901,1.16645281]
[1770588441512,4.07100943,86.93,86.901,1.16645281]
[1770588441913,28.75579429,86.939,86.901,1.16645281]
[1770588444818,40.258112,86.939,86.901,1.16645281]
[1770588447616,4.07100943,86.93,86.901,1.16645281]
[1770588450504,11.5036409,86.929,86.901,1.16645281]
[1770588456519,11.50245002,86.938,86.911,1.16645281]
[1770588457622,11.50245002,86.938,86.921,1.16645281]
[1770588459225,11.50245002,86.938,86.89,28.77170281]
[1770588459226,57.48472152,86.98,86.931,1.16645281]
[1770588459518,28.74555689,86.97,86.941,1.16645281]
[1770588460924,32.81656632,86.97,86.941,1.16645281]
[1770588462822,44.31478409,86.97,86.941,1.16645281]
[1770588465607,4.07100943,86.95,86.917,1.16645281]
[1770588466524,4.07100943,86.94,86.902,1.16645281]
[1770588466825,4.07100943,86.92,86.887,1.16645281]
[1770588467127,11.50496439,86.919,86.891,1.16645281]
[1770588468226,28.76000988,86.927,86.891,1.16645281]
[1770588471427,4.07100943,86.91,86.878,1.16645281]
[1770588473721,11.50628818,86.909,86.878,1.16645281]
[1770588477435,11.50628818,86.909,86.855,24.81460145]
[1770588477436,11.50403791,86.926,86.901,1.16645281]
[1770588478730,4.07100943,86.93,86.901,1.16645281]
[1770588479117,40.25824129,86.939,86.901,1.16645281]
[1770588479317,4.07100943,86.93,86.901,1.16645281]
[1770588479938,11.50231771,86.939,86.903,1.16645281]
[1770588480326,4.07100943,86.93,86.897,1.16645281]
[1770588481646,4.07100943,86.93,86.881,24.81460145]
[1770588481647,11.5036409,86.929,86.9,5.23746224]
[1770588481842,11.5036409,86.929,86.901,1.16645281]
[1770588483141,11.50231771,86.939,86.91,4.07100943]
[1770588483353,11.50231771,86.939,86.911,0.83769188]
[1770588484848,0.86930268,86.939,86.911,0.83769188]
[1770588488749,11.50245002,86.938,86.911,0.83769188]
[1770588489251,11.50112711,86.948,86.921,0.83769188]
[1770588489757,7.27068333,86.952,86.922,0.83769188]
[1770588490252,8.13998601,86.952,86.922,0.83769188]
[1770588490953,0.86930268,86.951,86.922,0.83769188]
[1770588491142,11.50112711,86.948,86.922,0.83769188]
[1770588493635,12.37042979,86.948,86.922,0.83769188]
[1770588493845,0.86930268,86.939,86.906,0.83769188]
[1770588494044,0.86930268,86.939,86.909,0.83769188]
[1770588495353,0.6876304,86.937,86.909,0.83769188]
[1770588499756,0.6876304,86.937,86.911,0.6452244]
[1770588502263,0.68470541,86.935,86.911,0.6452244]
[1770588502439,0.68470541,86.919,86.878,0.6452244]
[1770588502643,0.68470541,86.909,86.871,11.51120008]
[1770588502842,0.68470541,86.909,86.872,0.6452244]
[1770588504366,0.68470541,86.909,86.857,28.78281805]
[1770588504367,4.07404464,86.9,86.866,0.6452244]
[1770588505663,11.50761228,86.899,86.866,0.6452244]
[1770588506446,0.61963915,86.898,86.866,0.6452244]
[1770588506652,0.61963915,86.879,86.842,11.51505256]
[1770588506857,0.61963915,86.869,86.841,0.6452244]
[1770588507749,0.61061314,86.875,86.843,0.6452244]
[1770588507947,4.07404464,86.88,86.843,0.6452244]
[1770588508146,4.07404464,86.88,86.85,4.07404464]
[1770588508357,4.07404464,86.88,86.851,0.6452244]
[1770588508560,0.6016908,86.879,86.851,0.6452244]
[1770588511471,11.51039388,86.878,86.851,0.6452244]
[1770588512367,11.51039388,86.878,86.852,11.51383963]
[1770588512547,0.58341568,86.886,86.853,0.6452244]
[1770588513271,11.50946653,86.885,86.853,0.6452244]
[1770588513485,11.50946653,86.885,86.855,0.6452244]
[1770588516676,0.58341568,86.886,86.857,0.6452244]
[1770588517379,0.5683672,86.893,86.861,0.6452244]
[1770588518582,11.50781907,86.898,86.861,0.6452244]
[1770588518784,0.56546041,86.91,86.881,0.6452244]
[1770588519681,12.0716162,86.91,86.881,0.6452244]
[1770588519885,0.56258701,86.909,86.881,0.6452244]
[1770588523885,0.55141968,86.907,86.881,0.6452244]
[1770588524774,0.54870755,86.91,86.883,0.6452244]
[1770588524983,12.05218237,86.91,86.883,0.6452244]
[1770588526587,11.50615579,86.91,86.883,0.6452244]
[1770588526781,11.50642058,86.908,86.883,0.6452244]
[1770588527584,0.538167,86.907,86.883,0.6452244]
[1770588527882,0.538167,86.907,86.877,11.51039914]
[1770588527883,0.538167,86.907,86.877,0.56017171]
[1770588529671,0.538167,86.907,86.878,11.51039388]
[1770588529874,0.538167,86.907,86.879,0.56017171]
[1770588530278,11.50668538,86.906,86.879,0.56017171]
[1770588530586,0.53057514,86.905,86.879,0.56017171]
[1770588531574,4.07404464,86.9,86.879,0.56017171]
[1770588531774,0.52810244,86.899,86.874,0.56017171]
[1770588535063,0.52810244,86.899,86.876,0.56017171]
[1770588537482,4.07404464,86.89,86.865,24.81460145]
[1770588537687,0.51385133,86.889,86.86,0.56017171]
[1770588537987,11.50676997,86.906,86.878,0.56017171]
[1770588538189,12.0206213,86.906,86.878,0.56017171]
[1770588538383,0.51157071,86.905,86.878,0.56017171]
[1770588538685,11.50676997,86.906,86.878,0.56017171]
[1770588538887,0.51157071,86.905,86.878,0.56017171]
[1770588542884,0.5027072,86.903,86.878,0.56017171]
[1770588545499,7.34017707,86.911,86.865,0.59156605]
[1770588545500,4.07404464,86.9,86.865,0.59156605]
[1770588547294,40.27664299,86.899,86.865,0.59156605]
[1770588552300,11.50761228,86.899,86.871,0.59156605]
[1770588552796,40.272117,86.909,86.871,0.59156605]
[1770588556793,11.50628818,86.909,86.891,0.59156605]
[1770588556987,7.34017707,86.911,86.891,0.59156605]
[1770588557699,7.34017707,86.911,86.901,0.59156605]
[1770588559701,7.34017707,86.911,86.892,0.59156605]
[1770588560210,11.50615579,86.91,86.886,0.59156605]
[1770588561585,11.50615579,86.91,86.88,4.07404464]
[1770588561792,4.07404464,86.89,86.857,0.59156605]
[1770588562905,4.07538231,86.89,86.857,0.59156605]
[1770588563585,11.50893668,86.889,86.861,0.59156605]
[1770588565100,4.07538231,86.87,86.846,0.59156605]
[1770588566718,11.51103399,86.874,86.848,0.59156605]
[1770588570191,11.51026139,86.879,86.848,0.59156605]
[1770588571108,11.51026139,86.879,86.83,0.59156605]
[1770588571109,4.07538231,86.86,86.83,0.59156605]
[1770588572794,11.51291173,86.859,86.83,0.59156605]
[1770588573395,4.07538231,86.85,86.823,0.59156605]
[1770588573816,4.07538231,86.85,86.82,0.2]
[1770588573995,4.07538231,86.85,86.825,58.29524504]
[1770588574315,11.51423735,86.849,86.825,57.70367899]
[1770588574624,4.07538231,86.84,86.82,0.2]
[1770588574919,4.07538231,86.84,86.796,0.59156605]
[1770588574920,4.07538231,86.83,86.796,0.59156605]
[1770588575721,4.07538231,86.82,86.796,0.59156605]
[1770588576594,4.07538231,86.82,86.79,4.27538231]
[1770588576595,11.51821605,86.819,86.79,0.79156605]
[1770588576801,4.07538231,86.81,86.79,0.2]
[1770588577001,4.07538231,86.8,86.79,0.2]
[1770588577207,4.07538231,86.81,86.79,0.2]
[1770588578709,11.5195429,86.809,86.79,0.2]
[1770588581108,4.07538231,86.84,86.79,0.2]
[1770588581314,4.07538231,86.82,86.791,0.59156605]
[1770588582015,4.07538231,86.81,86.791,0.59156605]
[1770588582319,15.59488444,86.81,86.791,0.59156605]
[1770588582506,15.59488444,86.81,86.79,0.2]
[1770588584516,15.59488444,86.81,86.791,0.59156605]
[1770588585018,11.51950213,86.81,86.791,0.59156605]
[1770588586512,11.51821605,86.819,86.791,0.59156605]
[1770588586733,4.07538231,86.81,86.791,0.59156605]
[1770588590024,15.59485114,86.81,86.791,0.59156605]
[1770588590813,4.4050002,86.828,86.793,0.59156605]
[1770588592230,11.51716641,86.827,86.793,0.59156605]
[1770588593531,4.07538231,86.82,86.793,0.59156605]
[1770588595128,4.07538231,86.81,86.79,0.79156605]
[1770588595334,4.07538231,86.81,86.791,0.59156605]
[1770588599542,18.84571921,86.819,86.791,0.59156605]
[1770588601046,4.07538231,86.8,86.79,0.2]
[1770588601428,4.07538231,86.81,86.79,0.2]
[1770588601643,4.07538231,86.81,86.79,0.79156605]
[1770588602146,4.07538231,86.81,86.791,0.59156605]
[1770588602346,7.31869339,86.818,86.801,0.59156605]
[1770588602640,4.16276871,86.818,86.812,0.51108414]
[1770588603039,4.16276871,86.818,86.807,0.51108414]
[1770588603547,3.61698569,86.818,86.81,4.07538231]
[1770588608638,7.33182879,86.839,86.811,11.51927751]
[1770588608847,7.33182879,86.839,86.82,4.07538231]
[1770588610850,12.06418379,86.857,86.83,4.07538231]
[1770588611049,12.06418379,86.857,86.84,4.07538231]
[1770588611554,0.55099775,86.856,86.84,4.07538231]
[1770588614152,0.55099775,86.854,86.83,4.07538231]
[1770588615055,0.54222642,86.852,86.83,4.07538231]
[1770588617551,0.54222642,86.852,86.84,4.07538231]
[1770588617759,7.33779246,86.853,86.84,4.07538231]
[1770588618442,7.88001888,86.853,86.84,4.07538231]
[1770588619659,7.33779246,86.853,86.841,11.51529807]
[1770588619961,0.54222642,86.878,86.808,0.52116198]
[1770588620139,4.07538231,86.88,86.817,0.52116198]
[1770588620140,0.48858274,86.849,86.817,0.52116198]
[1770588620340,0.48858274,86.849,86.82,4.07538231]
[1770588620663,0.48858274,86.849,86.821,0.52116198]
[1770588623067,0.48858274,86.847,86.821,0.52116198]
[1770588623562,0.48858274,86.847,86.823,0.52116198]
[1770588624564,6.84921705,86.858,86.831,0.52116198]
[1770588624758,57.5355227,86.903,86.821,40.31269903]
[1770588624759,4.07809602,86.87,86.83,4.07809602]
[1770588624961,4.17809602,86.92,86.793,13.2733243]
[1770588624962,0.53429851,86.849,86.816,11.51856291]
[1770588626962,11.51433608,86.849,86.811,11.51927751]
[1770588627141,0.53429851,86.848,86.811,11.51927751]
[1770588629566,0.53429851,86.857,86.82,4.07809602]
[1770588629770,0.53429851,86.849,86.811,11.51927751]
[1770588630071,0.53429851,86.839,86.8,4.07809602]
[1770588630668,0.53429851,86.829,86.79,4.27809602]
[1770588630845,0.53429851,86.829,86.8,4.07809602]
[1770588631851,0.53429851,86.828,86.791,11.52193199]
[1770588632467,0.53429851,86.828,86.8,4.07809602]
[1770588635554,0.53429851,86.837,86.81,4.07809602]
[1770588635860,0.53429851,86.837,86.802,24.81460145]
[1770588636253,0.53429851,86.837,86.81,4.07809602]
[1770588637271,7.37399486,86.848,86.82,4.07809602]
[1770588637472,0.53429851,86.847,86.82,4.07809602]
[1770588637776,7.37399486,86.848,86.82,4.07809602]
[1770588637985,7.37399486,86.848,86.83,4.07809602]
[1770588642573,0.53429851,86.846,86.81,4.07809602]
[1770588644358,0.53429851,86.844,86.815,11.51873189]
[1770588646960,0.53429851,86.842,86.815,11.51873189]
[1770588647378,0.53429851,86.839,86.811,24.81460145]
[1770588648158,0.53429851,86.839,86.8,4.07809602]
[1770588648879,0.53429851,86.837,86.81,4.07809602]
[1770588649275,0.53429851,86.837,86.8,4.07809602]
[1770588650184,0.53429851,86.835,86.8,4.07809602]
[1770588651283,0.53429851,86.833,86.801,11.5206046]
[1770588652389,0.53429851,86.829,86.801,11.5206046]
[1770588652689,0.53429851,86.829,86.795,11.52128663]
[1770588655183,0.53429851,86.819,86.79,0.2]
[1770588655686,0.53429851,86.819,86.79,4.27809602]
[1770588657468,0.53429851,86.817,86.79,4.27809602]
[1770588658789,0.53429851,86.815,86.79,4.27809602]
[1770588662993,11.51887944,86.814,86.79,4.27809602]
[1770588663290,0.53429851,86.813,86.79,0.2]
[1770588664792,0.53429851,86.813,86.79,4.27809602]
[1770588667686,0.53429851,86.811,86.79,0.2]
[1770588670401,0.53429851,86.809,86.79,0.2]
[1770588679917,0.53429851,86.807,86.78,0.2]
[1770588680220,0.53429851,86.807,86.739,57.6441843]
[1770588680221,0.53429851,86.799,86.762,11.52570755]
[1770588681002,0.53429851,86.789,86.758,11.52631405]
[1770588682225,0.53429851,86.789,86.762,11.5257534]
[1770588684826,0.53429851,86.787,86.762,11.5257534]
[1770588685015,0.53429851,86.787,86.753,11.52697401]
[1770588685925,0.53429851,86.785,86.753,11.52697401]
[1770588686117,0.53429851,86.785,86.757,11.52644717]
[1770588686319,0.53429851,86.785,86.76,4.08469633]
[1770588686611,0.53429851,86.805,86.77,4.28469633]
[1770588686823,0.53429851,86.805,86.78,4.08469633]
[1770588689236,0.53429851,86.803,86.78,4.08469633]
[1770588690938,0.53429851,86.802,86.78,4.08469633]
[1770588691133,0.53429851,86.802,86.77,0.2]
[1770588691333,0.53429851,86.802,86.78,4.08469633]
[1770588699743,0.53429851,86.8,86.771,24.81460145]
[1770588700041,0.53429851,86.799,86.77,0.2]
[1770588703746,11.52100278,86.798,86.77,0.2]
[1770588703947,0.53429851,86.797,86.77,0.2]
[1770588705641,0.53429851,86.795,86.77,0.2]
[1770588707758,0.53429851,86.795,86.77,4.28469633]
[1770588708631,0.53429851,86.793,86.77,4.28469633]
[1770588711143,0.53429851,86.803,86.78,4.08469633]
[1770588714946,0.53429851,86.803,86.776,11.52389768]
[1770588716744,0.53429851,86.803,86.78,4.08469633]
[1770588718961,7.35631784,86.808,86.79,4.08469633]
[1770588719159,0.53429851,86.82,86.8,4.08469633]
[1770588719351,0.53429851,86.819,86.78,15.60802955]
[1770588719540,0.53429851,86.809,86.774,11.52406202]
[1770588719742,0.53429851,86.809,86.77,4.28469633]
[1770588719743,0.53429851,86.799,86.77,0.2]
[1770588720361,0.49142422,86.779,86.753,11.52695654]
[1770588720578,0.49142422,86.779,86.754,0.15300968]
[1770588720766,0.49142422,86.779,86.753,11.52695654]
[1770588720767,0.49142422,86.779,86.761,0.15300968]
[1770588735163,0.46662134,86.784,86.761,0.15300968]
[1770588739877,0.46662134,86.784,86.762,0.14835525]
[1770588741770,4.08469633,86.8,86.713,0.50828254]
[1770588741771,45.69134134,86.783,86.713,0.50828254]
[1770588741967,7.44351099,86.787,86.771,0.50828254]
[1770588742168,7.34872622,86.801,86.78,4.08469633]
[1770588742373,7.34872622,86.801,86.78,0.50828254]
[1770588742567,7.34872622,86.801,86.78,4.59297887]
[1770588742773,7.34872622,86.801,86.78,4.08469633]
[1770588743783,11.52073732,86.8,86.78,4.08469633]
[1770588746688,11.52073732,86.8,86.774,0.50828254]
[1770588748972,7.34872622,86.801,86.79,4.08263118]
[1770588749390,7.34872622,86.801,86.787,0.50828254]
[1770588750102,5.13032502,86.832,86.76,4.08263118]
[1770588750103,0.47056738,86.831,86.791,0.46103659]
[1770588750277,11.51476768,86.845,86.821,0.46103659]
[1770588750471,28.78185063,86.861,86.8,4.08263118]
[1770588750472,7.36724298,86.844,86.831,0.46103659]
[1770588751196,0.1,86.87,86.832,11.51649161]
[1770588751494,5.91373348,86.889,86.86,4.08263118]
[1770588751688,0.49585872,86.893,86.88,4.08263118]
[1770588751989,0.36510357,86.899,86.88,4.08263118]
[1770588752186,11.50573192,86.914,86.88,4.08263118]
[1770588752390,11.50573192,86.914,86.89,4.08263118]
[1770588753305,1.24257302,86.918,86.843,5.13032502]
[1770588753306,1.24257302,86.918,86.9,4.08263118]
[1770588754300,0.47056738,86.917,86.9,4.08263118]
[1770588767404,0.47056738,86.917,86.9,1.52619941]
[1770588767621,11.50536149,86.916,86.891,0.5]
[1770588772015,0.1,86.92,86.891,0.5]
[1770588773313,4.18263118,86.92,86.891,0.5]
[1770588774319,4.18263118,86.92,86.853,0.5]
[1770588774320,4.08263118,86.9,86.853,0.5]
[1770588774608,4.08263118,86.88,86.853,0.5]
[1770588774816,4.08263118,86.89,86.853,0.5]
[1770588775201,5.13032502,86.904,86.853,0.5]
[1770588775202,4.08263118,86.9,86.853,0.5]
[1770588775397,0.96179997,86.899,86.853,0.5]
[1770588776310,4.08263118,86.89,86.853,0.5]
[1770588777319,11.50893668,86.889,86.853,0.5]
[1770588780217,0.96179997,86.893,86.871,0.5]
[1770588780418,0.96179997,86.893,86.861,0.5]
[1770588780918,11.50853933,86.892,86.861,0.5]
[1770588781297,40.27988767,86.892,86.856,0.5]
[1770588781515,11.50853933,86.892,86.871,0.5]
[1770588783319,0.96179997,86.893,86.88,4.08263118]
[1770588783616,0.96179997,86.893,86.881,0.5]
[1770588784116,40.26876523,86.916,86.881,0.5]
[1770588784322,4.18263118,86.92,86.84,4.08263118]
[1770588784323,0.1,86.92,86.891,0.5]
[1770588785220,0.96179997,86.928,86.911,0.5]
[1770588785718,0.1,86.95,86.921,0.45955396]
[1770588785923,0.1,86.95,86.94,4.08263118]
[1770588786112,0.1,86.95,86.94,4.54218514]
[1770588786317,0.1,86.95,86.932,0.45955396]
[1770588786824,0.1,86.95,86.931,0.45955396]
[1770588787019,0.1,86.95,86.94,4.08263118]
[1770588787322,0.56119624,86.95,86.92,4.08263118]
[1770588787706,0.46119624,86.939,86.9,4.08263118]